[Event "Titled Tuesday Blitz April 4 Late 2023"]
[White "Cuenca Jimenez, Jose Fernando"]
[Black "Li, Hui"]
[WhiteFideId "2255570"]
[BlackFideId "15400310"]
[WhiteElo "2429"]
[BlackElo "1967"]
[Result "0-1"]
[Round "01"]
[TimeControl "180+2"]
[Date "2023.04.04"]
[WhiteClock "0:00:02"]
[BlackClock "0:00:01"]

1. c4 {[%clk 0:02:59]}  e6 {[%clk 0:02:58]} 2. Nf3 {[%clk 0:02:57]}  d5 {[%clk 0:02:59]} 3. b3 {[%clk 0:02:55]}  Nf6 {[%clk 0:02:59]} 4. g3 {[%clk 0:02:54]}  Be7 {[%clk 0:02:59]} 5. Bg2 {[%clk 0:02:54]}  O-O {[%clk 0:03:00]} 6. O-O {[%clk 0:02:54]}  c5 {[%clk 0:02:57]} 7. e3 {[%clk 0:02:53]}  b6 {[%clk 0:02:55]} 8. Bb2 {[%clk 0:02:52]}  Bb7 {[%clk 0:02:55]} 9. Nc3 {[%clk 0:02:52]}  Ne4 {[%clk 0:02:54]} 10. Ne2 {[%clk 0:02:37]}  Bf6 {[%clk 0:02:47]} 11. Bxf6 {[%clk 0:02:34]}  Qxf6 {[%clk 0:02:46]} 12. Qc2 {[%clk 0:02:15]}  Nd7 {[%clk 0:02:41]} 13. d3 {[%clk 0:02:09]}  Nd6 {[%clk 0:02:40]} 14. cxd5 {[%clk 0:01:53]}  Bxd5 {[%clk 0:02:36]} 15. e4 {[%clk 0:01:51]}  Bb7 {[%clk 0:02:33]} 16. Rad1 {[%clk 0:01:47]}  Qe7 {[%clk 0:02:19]} 17. Nd2 {[%clk 0:01:39]}  e5 {[%clk 0:02:09]} 18. f4 {[%clk 0:01:34]}  Nb5 {[%clk 0:01:50]} 19. Bh3 {[%clk 0:01:25]}  Rfd8 {[%clk 0:01:29]} 20. Nc4 {[%clk 0:01:19]}  exf4 {[%clk 0:01:20]} 21. gxf4 {[%clk 0:01:18]}  Qh4 {[%clk 0:01:07]} 22. Bg2 {[%clk 0:00:59]}  Nf8 {[%clk 0:00:34]} 23. Ne3 {[%clk 0:00:52]}  Ne6 {[%clk 0:00:22]} 24. Nf5 {[%clk 0:00:49]}  Qf6 {[%clk 0:00:21]} 25. Neg3 {[%clk 0:00:32]}  Ned4 {[%clk 0:00:19]} 26. Nxd4 {[%clk 0:00:28]}  Qxd4+ {[%clk 0:00:18]} 27. Kh1 {[%clk 0:00:26]}  Qc3 {[%clk 0:00:18]} 28. Qe2 {[%clk 0:00:22]}  Nd4 {[%clk 0:00:16]} 29. Qg4 {[%clk 0:00:22]}  Bc8 {[%clk 0:00:11]} 30. Qg5 {[%clk 0:00:22]}  Ne6 {[%clk 0:00:11]} 31. Qe7 {[%clk 0:00:16]}  Ba6 {[%clk 0:00:09]} 32. f5 {[%clk 0:00:13]}  Nd4 {[%clk 0:00:06]} 33. Nh5 {[%clk 0:00:05]}  Ne2 {[%clk 0:00:05]} 34. Qg5 {[%clk 0:00:05]}  h6 {[%clk 0:00:04]} 35. Qg4 {[%clk 0:00:04]}  Bxd3 {[%clk 0:00:03]} 36. Rf3 {[%clk 0:00:02]}  Bxe4 {[%clk 0:00:02]} 37. Rxc3 {[%clk 0:00:02]}  Rxd1# {[%clk 0:00:01]} 0-1


[Site "https://www.chess.com"]

[Event "Titled Tuesday Blitz April 4 Late 2023"]
[White "Rodriguez Santiago, Jaime"]
[Black "tuschessCM1"]
[WhiteFideId "3100898"]
[WhiteElo "2025"]
[BlackElo "2676"]
[Result "0-1"]
[Round "01"]
[TimeControl "180+2"]
[Date "2023.04.04"]
[WhiteClock "0:01:25"]
[BlackClock "0:01:37"]

1. c4 {[%clk 0:02:59]}  Nf6 {[%clk 0:02:54]} 2. Nc3 {[%clk 0:02:59]}  g6 {[%clk 0:02:53]} 3. g3 {[%clk 0:02:59]}  Bg7 {[%clk 0:02:53]} 4. Bg2 {[%clk 0:02:59]}  O-O {[%clk 0:02:53]} 5. e4 {[%clk 0:03:00]}  d6 {[%clk 0:02:52]} 6. Nge2 {[%clk 0:03:00]}  e5 {[%clk 0:02:50]} 7. O-O {[%clk 0:02:58]}  Nc6 {[%clk 0:02:49]} 8. d3 {[%clk 0:02:58]}  Nh5 {[%clk 0:02:48]} 9. Nd5 {[%clk 0:02:52]}  Be6 {[%clk 0:02:44]} 10. Nec3 {[%clk 0:02:50]}  Nd4 {[%clk 0:02:43]} 11. f4 {[%clk 0:02:33]}  c6 {[%clk 0:02:37]} 12. Ne3 {[%clk 0:02:32]}  exf4 {[%clk 0:02:36]} 13. gxf4 {[%clk 0:02:30]}  f5 {[%clk 0:02:37]} 14. exf5 {[%clk 0:02:10]}  Nxf5 {[%clk 0:02:38]} 15. Nxf5 {[%clk 0:02:07]}  Bxf5 {[%clk 0:02:38]} 16. d4 {[%clk 0:02:06]}  Qh4 {[%clk 0:02:31]} 17. Be3 {[%clk 0:01:57]}  Rae8 {[%clk 0:02:29]} 18. Qd2 {[%clk 0:01:55]}  Re7 {[%clk 0:02:01]} 19. Rae1 {[%clk 0:01:48]}  Rfe8 {[%clk 0:02:00]} 20. b4 {[%clk 0:01:31]}  Bh6 {[%clk 0:01:44]} 21. b5 {[%clk 0:01:25]}  Bxf4 {[%clk 0:01:37]} 0-1


[Site "https://www.chess.com"]

[Event "Titled Tuesday Blitz April 4 Late 2023"]
[White "Di Nicolantonio, Lucas"]
[Black "Novikova, Galina"]
[WhiteFideId "680460"]
[BlackFideId "4157095"]
[WhiteElo "2358"]
[BlackElo "1953"]
[Result "1-0"]
[Round "01"]
[TimeControl "180+2"]
[Date "2023.04.04"]
[WhiteClock "0:02:07"]
[BlackClock "0:02:16"]

1. Nf3 {[%clk 0:03:00]}  e6 {[%clk 0:02:58]} 2. c4 {[%clk 0:02:58]}  f5 {[%clk 0:02:59]} 3. g3 {[%clk 0:02:57]}  Nf6 {[%clk 0:02:59]} 4. Bg2 {[%clk 0:02:58]}  Be7 {[%clk 0:03:00]} 5. Nc3 {[%clk 0:02:58]}  d6 {[%clk 0:02:59]} 6. O-O {[%clk 0:02:52]}  e5 {[%clk 0:02:59]} 7. d3 {[%clk 0:02:51]}  O-O {[%clk 0:02:58]} 8. Rb1 {[%clk 0:02:49]}  Qe8 {[%clk 0:02:53]} 9. b4 {[%clk 0:02:49]}  Qh5 {[%clk 0:02:52]} 10. b5 {[%clk 0:02:44]}  f4 {[%clk 0:02:38]} 11. c5 {[%clk 0:02:30]}  Bh3 {[%clk 0:02:36]} 12. cxd6 {[%clk 0:02:15]}  cxd6 {[%clk 0:02:33]} 13. Qb3+ {[%clk 0:02:10]}  Kh8 {[%clk 0:02:30]} 14. Bxh3 {[%clk 0:02:08]}  Qxh3 {[%clk 0:02:29]} 15. Ng5 {[%clk 0:02:08]}  Ng4 {[%clk 0:02:16]} 16. Nxh3 {[%clk 0:02:07]} 1-0


[Site "https://www.chess.com"]

[Event "Titled Tuesday Blitz April 4 Late 2023"]
[White "Gutkin, Ilya"]
[Black "Rodshtein, Maxim"]
[WhiteFideId "16203470"]
[BlackFideId "2806851"]
[WhiteElo "2265"]
[BlackElo "2555"]
[Result "0-1"]
[Round "01"]
[TimeControl "180+2"]
[Date "2023.04.04"]
[WhiteClock "0:00:01"]
[BlackClock "0:00:14"]

1. Nf3 {[%clk 0:03:00]}  d5 {[%clk 0:02:57]} 2. g3 {[%clk 0:03:01]}  g6 {[%clk 0:02:54]} 3. Bg2 {[%clk 0:03:00]}  Bg7 {[%clk 0:02:54]} 4. c4 {[%clk 0:03:01]}  dxc4 {[%clk 0:02:54]} 5. Na3 {[%clk 0:03:00]}  e5 {[%clk 0:02:53]} 6. O-O {[%clk 0:02:49]}  e4 {[%clk 0:02:41]} 7. Ne1 {[%clk 0:02:49]}  Nf6 {[%clk 0:02:42]} 8. Nxc4 {[%clk 0:02:41]}  O-O {[%clk 0:02:41]} 9. d3 {[%clk 0:02:41]}  Be6 {[%clk 0:02:28]} 10. Ne3 {[%clk 0:02:35]}  Nc6 {[%clk 0:01:48]} 11. dxe4 {[%clk 0:02:34]}  Re8 {[%clk 0:01:46]} 12. Nd3 {[%clk 0:02:17]}  Qe7 {[%clk 0:01:20]} 13. Nd5 {[%clk 0:02:16]}  Bxd5 {[%clk 0:01:17]} 14. exd5 {[%clk 0:02:17]}  Nb4 {[%clk 0:01:02]} 15. Nxb4 {[%clk 0:02:14]}  Qxb4 {[%clk 0:01:03]} 16. Bd2 {[%clk 0:01:56]}  Qxb2 {[%clk 0:01:00]} 17. Rb1 {[%clk 0:01:55]}  Qxa2 {[%clk 0:01:00]} 18. Rxb7 {[%clk 0:01:51]}  Nxd5 {[%clk 0:01:00]} 19. e4 {[%clk 0:01:24]}  Nb6 {[%clk 0:00:54]} 20. Rxc7 {[%clk 0:01:18]}  Rad8 {[%clk 0:00:53]} 21. Rc2 {[%clk 0:01:11]}  Qb3 {[%clk 0:00:52]} 22. Qb1 {[%clk 0:01:03]}  Rd3 {[%clk 0:00:41]} 23. Qxb3 {[%clk 0:00:57]}  Rxb3 {[%clk 0:00:42]} 24. Ra2 {[%clk 0:00:54]}  Nc4 {[%clk 0:00:42]} 25. Bf4 {[%clk 0:00:46]}  a5 {[%clk 0:00:38]} 26. Rc1 {[%clk 0:00:43]}  Na3 {[%clk 0:00:27]} 27. Bd6 {[%clk 0:00:30]}  Nb5 {[%clk 0:00:26]} 28. Bc5 {[%clk 0:00:22]}  Nc3 {[%clk 0:00:25]} 29. Rac2 {[%clk 0:00:17]}  a4 {[%clk 0:00:24]} 30. Bf1 {[%clk 0:00:15]}  Rc8 {[%clk 0:00:21]} 31. Be3 {[%clk 0:00:15]}  a3 {[%clk 0:00:21]} 32. Bd2 {[%clk 0:00:07]}  Rb2 {[%clk 0:00:20]} 33. Rxc3 {[%clk 0:00:02]}  Bxc3 {[%clk 0:00:19]} 34. Rxc3 {[%clk 0:00:01]}  Rxc3 {[%clk 0:00:18]} 35. Bxc3 {[%clk 0:00:02]}  Rc2 {[%clk 0:00:18]} 36. Bd4 {[%clk 0:00:02]}  a2 {[%clk 0:00:17]} 37. Bf6 {[%clk 0:00:02]}  Rc6 {[%clk 0:00:17]} 38. Bd4 {[%clk 0:00:01]}  Rd6 {[%clk 0:00:16]} 39. Ba1 {[%clk 0:00:01]}  Rd1 {[%clk 0:00:16]} 40. Bf6 {[%clk 0:00:01]}  h6 {[%clk 0:00:15]} 41. Kg2 {[%clk 0:00:01]}  a1=Q {[%clk 0:00:14]} 0-1


[Site "https://www.chess.com"]

[Event "Titled Tuesday Blitz April 4 Late 2023"]
[White "K2JW"]
[Black "Barbosa, Evandro Amorim"]
[BlackFideId "2115824"]
[WhiteElo "2329"]
[BlackElo "2439"]
[Result "0-1"]
[Round "01"]
[TimeControl "180+2"]
[Date "2023.04.04"]
[WhiteClock "0:00:22"]
[BlackClock "0:01:08"]

1. d4 {[%clk 0:02:59]}  Nf6 {[%clk 0:02:59]} 2. c4 {[%clk 0:02:59]}  e6 {[%clk 0:02:59]} 3. Nf3 {[%clk 0:02:58]}  c5 {[%clk 0:03:00]} 4. d5 {[%clk 0:02:58]}  exd5 {[%clk 0:03:01]} 5. cxd5 {[%clk 0:02:59]}  d6 {[%clk 0:03:01]} 6. Nc3 {[%clk 0:02:58]}  g6 {[%clk 0:03:01]} 7. Nd2 {[%clk 0:02:58]}  Bg7 {[%clk 0:03:02]} 8. e4 {[%clk 0:02:58]}  O-O {[%clk 0:03:02]} 9. Be2 {[%clk 0:02:59]}  b6 {[%clk 0:03:03]} 10. a4 {[%clk 0:02:56]}  Ba6 {[%clk 0:03:02]} 11. Bb5 {[%clk 0:02:56]}  Ne8 {[%clk 0:03:00]} 12. O-O {[%clk 0:02:42]}  Nc7 {[%clk 0:03:00]} 13. Qe2 {[%clk 0:02:33]}  Re8 {[%clk 0:02:58]} 14. Qd3 {[%clk 0:02:23]}  Bxb5 {[%clk 0:02:43]} 15. axb5 {[%clk 0:02:21]}  Nd7 {[%clk 0:02:43]} 16. f4 {[%clk 0:02:10]}  Nf6 {[%clk 0:02:32]} 17. h3 {[%clk 0:01:59]}  Nh5 {[%clk 0:02:25]} 18. g4 {[%clk 0:01:47]}  Nf6 {[%clk 0:02:15]} 19. Nc4 {[%clk 0:01:46]}  Qd7 {[%clk 0:02:09]} 20. Rd1 {[%clk 0:01:33]}  h5 {[%clk 0:01:52]} 21. g5 {[%clk 0:01:32]}  Nh7 {[%clk 0:01:38]} 22. Na3 {[%clk 0:01:23]}  f6 {[%clk 0:01:36]} 23. Kg2 {[%clk 0:01:19]}  fxg5 {[%clk 0:01:35]} 24. fxg5 {[%clk 0:01:20]}  Rf8 {[%clk 0:01:29]} 25. Be3 {[%clk 0:01:17]}  Be5 {[%clk 0:01:29]} 26. Rf1 {[%clk 0:01:15]}  Qe7 {[%clk 0:01:29]} 27. Qd2 {[%clk 0:01:09]}  Bxc3 {[%clk 0:01:26]} 28. bxc3 {[%clk 0:01:06]}  Qxe4+ {[%clk 0:01:25]} 29. Kg1 {[%clk 0:01:06]}  Rf3 {[%clk 0:01:23]} 30. Rxf3 {[%clk 0:00:59]}  Qxf3 {[%clk 0:01:24]} 31. Qd3 {[%clk 0:00:58]}  Nf8 {[%clk 0:01:20]} 32. c4 {[%clk 0:00:50]}  Re8 {[%clk 0:01:13]} 33. Nc2 {[%clk 0:00:48]}  Qg3+ {[%clk 0:01:12]} 34. Kh1 {[%clk 0:00:48]}  Qxh3+ {[%clk 0:01:12]} 35. Kg1 {[%clk 0:00:48]}  Qg3+ {[%clk 0:01:12]} 36. Kh1 {[%clk 0:00:49]}  Qf3+ {[%clk 0:01:11]} 37. Kg1 {[%clk 0:00:49]}  Re4 {[%clk 0:01:11]} 38. Rf1 {[%clk 0:00:22]}  Rg4+ {[%clk 0:01:08]} 0-1


[Site "https://www.chess.com"]

[Event "Titled Tuesday Blitz April 4 Late 2023"]
[White "Baglan, Esat"]
[Black "Kirillov, Dmitry"]
[WhiteFideId "6309216"]
[BlackFideId "34180572"]
[WhiteElo "2231"]
[BlackElo "2111"]
[Result "1-0"]
[Round "01"]
[TimeControl "180+2"]
[Date "2023.04.04"]
[WhiteClock "0:00:26"]
[BlackClock "0:00:01"]

1. Nf3 {[%clk 0:03:00]}  d5 {[%clk 0:02:57]} 2. g3 {[%clk 0:02:58]}  c6 {[%clk 0:02:55]} 3. Bg2 {[%clk 0:02:58]}  Nf6 {[%clk 0:02:56]} 4. O-O {[%clk 0:02:58]}  Bg4 {[%clk 0:02:57]} 5. c4 {[%clk 0:02:57]}  e6 {[%clk 0:02:56]} 6. d3 {[%clk 0:02:56]}  Nbd7 {[%clk 0:02:55]} 7. Qb3 {[%clk 0:02:55]}  Nc5 {[%clk 0:02:54]} 8. Qc2 {[%clk 0:02:53]}  Bf5 {[%clk 0:02:54]} 9. Nh4 {[%clk 0:02:43]}  Bg6 {[%clk 0:02:52]} 10. Nxg6 {[%clk 0:02:41]}  hxg6 {[%clk 0:02:53]} 11. b3 {[%clk 0:02:40]}  Be7 {[%clk 0:02:49]} 12. Nd2 {[%clk 0:02:37]}  Rc8 {[%clk 0:02:49]} 13. Bb2 {[%clk 0:02:37]}  Ng4 {[%clk 0:02:35]} 14. h3 {[%clk 0:02:35]}  Nf6 {[%clk 0:02:35]} 15. Rfd1 {[%clk 0:02:33]}  Qd6 {[%clk 0:02:27]} 16. e4 {[%clk 0:02:26]}  d4 {[%clk 0:02:17]} 17. b4 {[%clk 0:02:25]}  Ncd7 {[%clk 0:02:11]} 18. c5 {[%clk 0:02:25]}  Qe5 {[%clk 0:02:05]} 19. Nf3 {[%clk 0:02:22]}  Qh5 {[%clk 0:02:05]} 20. Bxd4 {[%clk 0:02:21]}  Rd8 {[%clk 0:01:58]} 21. Be3 {[%clk 0:02:16]}  e5 {[%clk 0:01:54]} 22. d4 {[%clk 0:02:11]}  exd4 {[%clk 0:01:50]} 23. Rxd4 {[%clk 0:02:12]}  O-O {[%clk 0:01:45]} 24. Rad1 {[%clk 0:02:12]}  Ne5 {[%clk 0:01:37]} 25. Nxe5 {[%clk 0:02:09]}  Qxe5 {[%clk 0:01:35]} 26. f4 {[%clk 0:01:44]}  Qe6 {[%clk 0:01:31]} 27. Bf2 {[%clk 0:01:32]}  Rxd4 {[%clk 0:01:11]} 28. Rxd4 {[%clk 0:01:33]}  Rd8 {[%clk 0:01:06]} 29. Rxd8+ {[%clk 0:01:33]}  Bxd8 {[%clk 0:01:06]} 30. a3 {[%clk 0:01:31]}  Bc7 {[%clk 0:01:04]} 31. Qd3 {[%clk 0:01:29]}  Nh5 {[%clk 0:01:02]} 32. e5 {[%clk 0:01:19]}  g5 {[%clk 0:00:56]} 33. Qf3 {[%clk 0:01:05]}  g6 {[%clk 0:00:49]} 34. Qg4 {[%clk 0:01:03]}  gxf4 {[%clk 0:00:44]} 35. Qxe6 {[%clk 0:00:45]}  fxe6 {[%clk 0:00:45]} 36. g4 {[%clk 0:00:45]}  Ng3 {[%clk 0:00:41]} 37. b5 {[%clk 0:00:37]}  cxb5 {[%clk 0:00:41]} 38. Bxb7 {[%clk 0:00:37]}  Ne2+ {[%clk 0:00:30]} 39. Kg2 {[%clk 0:00:37]}  Nc3 {[%clk 0:00:31]} 40. c6 {[%clk 0:00:35]}  a5 {[%clk 0:00:29]} 41. Kf3 {[%clk 0:00:34]}  b4 {[%clk 0:00:24]} 42. axb4 {[%clk 0:00:35]}  axb4 {[%clk 0:00:25]} 43. Bd4 {[%clk 0:00:34]}  Nb5 {[%clk 0:00:22]} 44. Bb2 {[%clk 0:00:34]}  g5 {[%clk 0:00:22]} 45. h4 {[%clk 0:00:34]}  gxh4 {[%clk 0:00:21]} 46. Kxf4 {[%clk 0:00:34]}  Nc3 {[%clk 0:00:19]} 47. g5 {[%clk 0:00:31]}  Kg7 {[%clk 0:00:18]} 48. Ba6 {[%clk 0:00:30]}  Kg6 {[%clk 0:00:16]} 49. Kg4 {[%clk 0:00:29]}  Bxe5 {[%clk 0:00:15]} 50. Bd3+ {[%clk 0:00:30]}  Kg7 {[%clk 0:00:15]} 51. Kxh4 {[%clk 0:00:30]}  Bc7 {[%clk 0:00:12]} 52. Kg4 {[%clk 0:00:30]}  e5 {[%clk 0:00:12]} 53. Kf5 {[%clk 0:00:29]}  Kf7 {[%clk 0:00:09]} 54. Bc4+ {[%clk 0:00:29]}  Kg7 {[%clk 0:00:09]} 55. Be6 {[%clk 0:00:29]}  Bd8 {[%clk 0:00:04]} 56. Kxe5 {[%clk 0:00:26]}  Bxg5 {[%clk 0:00:03]} 57. c7 {[%clk 0:00:26]}  Bf4+ {[%clk 0:00:01]} 58. Kxf4 {[%clk 0:00:26]} 1-0


[Site "https://www.chess.com"]

[Event "Titled Tuesday Blitz April 4 Late 2023"]
[White "micke12a"]
[Black "Krallis, Christos"]
[BlackFideId "4298896"]
[WhiteElo "2327"]
[BlackElo "2243"]
[Result "1/2-1/2"]
[Round "01"]
[TimeControl "180+2"]
[Date "2023.04.04"]
[WhiteClock "0:00:12"]
[BlackClock "0:00:30"]

1. d4 {[%clk 0:03:00]}  Nf6 {[%clk 0:02:57]} 2. Nf3 {[%clk 0:02:59]}  d5 {[%clk 0:02:57]} 3. g3 {[%clk 0:02:58]}  c5 {[%clk 0:02:56]} 4. Bg2 {[%clk 0:02:56]}  e6 {[%clk 0:02:55]} 5. O-O {[%clk 0:02:56]}  Nc6 {[%clk 0:02:53]} 6. e3 {[%clk 0:02:55]}  Be7 {[%clk 0:02:48]} 7. b3 {[%clk 0:02:55]}  O-O {[%clk 0:02:49]} 8. Bb2 {[%clk 0:02:54]}  cxd4 {[%clk 0:02:47]} 9. Nxd4 {[%clk 0:02:53]}  Nxd4 {[%clk 0:02:47]} 10. Bxd4 {[%clk 0:02:53]}  b6 {[%clk 0:02:47]} 11. Qe2 {[%clk 0:02:51]}  Bb7 {[%clk 0:02:47]} 12. Rd1 {[%clk 0:02:51]}  Qc7 {[%clk 0:02:47]} 13. c4 {[%clk 0:02:42]}  dxc4 {[%clk 0:02:45]} 14. Bxb7 {[%clk 0:02:41]}  Qxb7 {[%clk 0:02:45]} 15. Qxc4 {[%clk 0:02:42]}  Rac8 {[%clk 0:02:44]} 16. Qe2 {[%clk 0:02:40]}  Ne4 {[%clk 0:02:44]} 17. Nd2 {[%clk 0:02:35]}  Ng5 {[%clk 0:02:40]} 18. h4 {[%clk 0:02:26]}  Ne4 {[%clk 0:02:28]} 19. Qf3 {[%clk 0:02:19]}  Nd6 {[%clk 0:02:27]} 20. Qxb7 {[%clk 0:02:10]}  Nxb7 {[%clk 0:02:28]} 21. Rac1 {[%clk 0:02:10]}  f6 {[%clk 0:02:26]} 22. Bb2 {[%clk 0:02:04]}  Kf7 {[%clk 0:02:25]} 23. Ne4 {[%clk 0:02:01]}  e5 {[%clk 0:02:25]} 24. Rd7 {[%clk 0:01:55]}  Nc5 {[%clk 0:02:04]} 25. Nxc5 {[%clk 0:01:46]}  bxc5 {[%clk 0:02:03]} 26. Rxa7 {[%clk 0:01:45]}  Ra8 {[%clk 0:02:03]} 27. Rxa8 {[%clk 0:01:35]}  Rxa8 {[%clk 0:02:04]} 28. a4 {[%clk 0:01:25]}  e4 {[%clk 0:02:04]} 29. Ba3 {[%clk 0:01:19]}  Rc8 {[%clk 0:01:43]} 30. Rc4 {[%clk 0:01:09]}  f5 {[%clk 0:01:39]} 31. b4 {[%clk 0:01:01]}  Ke6 {[%clk 0:01:39]} 32. bxc5 {[%clk 0:00:48]}  Kd5 {[%clk 0:01:39]} 33. Rd4+ {[%clk 0:00:40]}  Ke6 {[%clk 0:01:39]} 34. a5 {[%clk 0:00:35]}  Ra8 {[%clk 0:01:35]} 35. Bb4 {[%clk 0:00:30]}  Ra6 {[%clk 0:01:27]} 36. Kg2 {[%clk 0:00:27]}  Rc6 {[%clk 0:01:27]} 37. f3 {[%clk 0:00:27]}  exf3+ {[%clk 0:01:13]} 38. Kxf3 {[%clk 0:00:27]}  g6 {[%clk 0:01:13]} 39. e4 {[%clk 0:00:21]}  Rc8 {[%clk 0:01:12]} 40. exf5+ {[%clk 0:00:20]}  gxf5 {[%clk 0:01:13]} 41. h5 {[%clk 0:00:19]}  Rb8 {[%clk 0:01:13]} 42. a6 {[%clk 0:00:18]}  Ra8 {[%clk 0:01:12]} 43. g4 {[%clk 0:00:16]}  fxg4+ {[%clk 0:00:50]} 44. Kxg4 {[%clk 0:00:15]}  Rxa6 {[%clk 0:00:49]} 45. Re4+ {[%clk 0:00:14]}  Kf7 {[%clk 0:00:45]} 46. Rf4+ {[%clk 0:00:04]}  Ke6 {[%clk 0:00:41]} 47. Re4+ {[%clk 0:00:04]}  Kf7 {[%clk 0:00:39]} 48. Kf5 {[%clk 0:00:04]}  Rh6 {[%clk 0:00:33]} 49. Kg4 {[%clk 0:00:04]}  Rc6 {[%clk 0:00:33]} 50. Rf4+ {[%clk 0:00:04]}  Ke8 {[%clk 0:00:33]} 51. Kf5 {[%clk 0:00:04]}  Bxc5 {[%clk 0:00:31]} 52. Re4+ {[%clk 0:00:04]}  Kf7 {[%clk 0:00:30]} 53. Rc4 {[%clk 0:00:03]}  Rf6+ {[%clk 0:00:30]} 54. Kg4 {[%clk 0:00:03]}  Bb6 {[%clk 0:00:26]} 55. Bc3 {[%clk 0:00:02]}  Re6 {[%clk 0:00:26]} 56. Rf4+ {[%clk 0:00:02]}  Kg8 {[%clk 0:00:26]} 57. Rf6 {[%clk 0:00:03]}  Re3 {[%clk 0:00:20]} 58. Rxb6 {[%clk 0:00:02]}  Rxc3 {[%clk 0:00:21]} 59. Rb8+ {[%clk 0:00:02]}  Kg7 {[%clk 0:00:21]} 60. Rb7+ {[%clk 0:00:02]}  Kg8 {[%clk 0:00:21]} 61. Rb8+ {[%clk 0:00:03]}  Kf7 {[%clk 0:00:22]} 62. Rb7+ {[%clk 0:00:03]}  Kf6 {[%clk 0:00:22]} 63. Rxh7 {[%clk 0:00:03]}  Rc4+ {[%clk 0:00:22]} 64. Kf3 {[%clk 0:00:04]}  Kg5 {[%clk 0:00:23]} 65. h6 {[%clk 0:00:03]}  Kg6 {[%clk 0:00:24]} 66. Rh8 {[%clk 0:00:04]}  Rc3+ {[%clk 0:00:23]} 67. Kg4 {[%clk 0:00:04]}  Rc4+ {[%clk 0:00:24]} 68. Kf3 {[%clk 0:00:04]}  Ra4 {[%clk 0:00:23]} 69. Rg8+ {[%clk 0:00:04]}  Kxh6 {[%clk 0:00:23]} 70. Rg2 {[%clk 0:00:05]}  Kh5 {[%clk 0:00:23]} 71. Re2 {[%clk 0:00:05]}  Kg5 {[%clk 0:00:23]} 72. Re3 {[%clk 0:00:06]}  Kf5 {[%clk 0:00:23]} 73. Rd3 {[%clk 0:00:06]}  Ra1 {[%clk 0:00:24]} 74. Ke3 {[%clk 0:00:06]}  Ke5 {[%clk 0:00:23]} 75. Rb3 {[%clk 0:00:06]}  Rh1 {[%clk 0:00:24]} 76. Rb5+ {[%clk 0:00:06]}  Kd6 {[%clk 0:00:24]} 77. Rb6+ {[%clk 0:00:07]}  Kc5 {[%clk 0:00:25]} 78. Rg6 {[%clk 0:00:07]}  Kd5 {[%clk 0:00:25]} 79. Rg5+ {[%clk 0:00:07]}  Ke6 {[%clk 0:00:25]} 80. Rg2 {[%clk 0:00:08]}  Re1+ {[%clk 0:00:25]} 81. Re2 {[%clk 0:00:08]}  Ra1 {[%clk 0:00:26]} 82. Rd2 {[%clk 0:00:08]}  Ke5 {[%clk 0:00:27]} 83. Rd3 {[%clk 0:00:08]}  Re1+ {[%clk 0:00:27]} 84. Kd2 {[%clk 0:00:09]}  Rh1 {[%clk 0:00:28]} 85. Re3+ {[%clk 0:00:09]}  Kd4 {[%clk 0:00:28]} 86. Re2 {[%clk 0:00:10]}  Ra1 {[%clk 0:00:27]} 87. Re8 {[%clk 0:00:10]}  Ra2+ {[%clk 0:00:27]} 88. Kc1 {[%clk 0:00:10]}  Rh2 {[%clk 0:00:26]} 89. Rd8+ {[%clk 0:00:10]}  Kc4 {[%clk 0:00:27]} 90. Rc8+ {[%clk 0:00:11]}  Kb3 {[%clk 0:00:27]} 91. Rb8+ {[%clk 0:00:11]}  Ka2 {[%clk 0:00:27]} 92. Ra8+ {[%clk 0:00:12]}  Kb3 {[%clk 0:00:28]} 93. Rb8+ {[%clk 0:00:12]}  Kc4 {[%clk 0:00:28]} 94. Rc8+ {[%clk 0:00:12]}  Kd4 {[%clk 0:00:29]} 95. Rd8+ {[%clk 0:00:13]}  Kc5 {[%clk 0:00:29]} 96. Rc8+ {[%clk 0:00:13]}  Kd6 {[%clk 0:00:30]} 97. Rd8+ {[%clk 0:00:12]} 1/2-1/2


[Site "https://www.chess.com"]

[Event "Titled Tuesday Blitz April 4 Late 2023"]
[White "Schuster, Karsten"]
[Black "Tsvetkov, Andrey"]
[WhiteFideId "4611071"]
[BlackFideId "34139360"]
[WhiteElo "2294"]
[BlackElo "2319"]
[Result "0-1"]
[Round "01"]
[TimeControl "180+2"]
[Date "2023.04.04"]
[WhiteClock "0:00:12"]
[BlackClock "0:00:31"]

1. Nf3 {[%clk 0:02:58]}  d5 {[%clk 0:03:00]} 2. d4 {[%clk 0:02:58]}  Nf6 {[%clk 0:03:00]} 3. b3 {[%clk 0:02:58]}  c5 {[%clk 0:02:59]} 4. Bb2 {[%clk 0:02:58]}  cxd4 {[%clk 0:02:59]} 5. Bxd4 {[%clk 0:02:58]}  Nc6 {[%clk 0:02:59]} 6. Bb2 {[%clk 0:02:57]}  e6 {[%clk 0:02:58]} 7. e3 {[%clk 0:02:58]}  Bb4+ {[%clk 0:02:56]} 8. c3 {[%clk 0:02:57]}  Bd6 {[%clk 0:02:56]} 9. Be2 {[%clk 0:02:57]}  O-O {[%clk 0:02:55]} 10. O-O {[%clk 0:02:57]}  a5 {[%clk 0:02:56]} 11. c4 {[%clk 0:02:57]}  a4 {[%clk 0:02:55]} 12. cxd5 {[%clk 0:02:56]}  Nxd5 {[%clk 0:02:56]} 13. bxa4 {[%clk 0:02:51]}  Qe7 {[%clk 0:02:27]} 14. Nc3 {[%clk 0:02:50]}  Nxc3 {[%clk 0:02:25]} 15. Bxc3 {[%clk 0:02:49]}  Rd8 {[%clk 0:02:25]} 16. Qb3 {[%clk 0:02:45]}  e5 {[%clk 0:02:25]} 17. Rfd1 {[%clk 0:02:39]}  Be6 {[%clk 0:02:18]} 18. Qb2 {[%clk 0:02:30]}  f6 {[%clk 0:02:09]} 19. Bb5 {[%clk 0:02:27]}  Bg4 {[%clk 0:02:03]} 20. h3 {[%clk 0:02:15]}  Bh5 {[%clk 0:01:51]} 21. Bc4+ {[%clk 0:01:57]}  Kh8 {[%clk 0:01:50]} 22. g4 {[%clk 0:01:48]}  Bg6 {[%clk 0:01:48]} 23. Nh4 {[%clk 0:01:43]}  Rxa4 {[%clk 0:01:44]} 24. Nxg6+ {[%clk 0:01:32]}  hxg6 {[%clk 0:01:45]} 25. Bd3 {[%clk 0:01:29]}  e4 {[%clk 0:01:43]} 26. Bb5 {[%clk 0:01:29]}  Raa8 {[%clk 0:01:43]} 27. Kg2 {[%clk 0:01:23]}  Ne5 {[%clk 0:01:36]} 28. Be2 {[%clk 0:01:18]}  Rac8 {[%clk 0:01:33]} 29. Rd5 {[%clk 0:00:45]}  Nd3 {[%clk 0:01:31]} 30. Qb3 {[%clk 0:00:33]}  Rxc3 {[%clk 0:00:52]} 31. Qxc3 {[%clk 0:00:31]}  Be5 {[%clk 0:00:53]} 32. Rxe5 {[%clk 0:00:31]}  Nxe5 {[%clk 0:00:53]} 33. Rb1 {[%clk 0:00:28]}  f5 {[%clk 0:00:51]} 34. Qb4 {[%clk 0:00:24]}  Qg5 {[%clk 0:00:48]} 35. Qb6 {[%clk 0:00:21]}  fxg4 {[%clk 0:00:45]} 36. hxg4 {[%clk 0:00:20]}  Nxg4 {[%clk 0:00:45]} 37. Bxg4 {[%clk 0:00:20]}  Qxg4+ {[%clk 0:00:45]} 38. Kf1 {[%clk 0:00:21]}  Rf8 {[%clk 0:00:41]} 39. Rb2 {[%clk 0:00:18]}  Qh3+ {[%clk 0:00:34]} 40. Kg1 {[%clk 0:00:17]}  Kh7 {[%clk 0:00:31]} 41. Qxb7 {[%clk 0:00:12]}  Rf5 {[%clk 0:00:31]} 42. Qxe4 {[%clk 0:00:12]}  Rg5+ {[%clk 0:00:31]} 0-1


[Site "https://www.chess.com"]